fUSD/lending_fUSD_20260205
["ID","MTS","AMOUNT","RATE_DAILY","PERIOD"]
[404594422,1770322240574,-151.0,0.00016428,2]
[404594423,1770322240583,-151.0,0.00016428,2]
[404594424,1770322240592,-500.0,0.00016438,2]
[404594425,1770322240602,-500.0,0.00016438,2]
[404594426,1770322240613,-500.0,0.00016438,2]
[404594427,1770322240623,-500.0,0.00016438,2]
[404594428,1770322240632,-500.0,0.00016438,2]
[404594429,1770322240642,-500.0,0.00016438,2]
[404594430,1770322240651,-500.0,0.00016438,2]
[404594431,1770322240661,-500.0,0.00016438,2]
[404594432,1770322240671,-500.0,0.00016438,2]
[404594433,1770322240680,-500.0,0.00016438,2]
[404594434,1770322240691,-500.0,0.00016438,2]
[404594435,1770322240700,-500.0,0.00016438,2]
[404594436,1770322240710,-500.0,0.00016438,2]
[404594437,1770322240719,-500.0,0.00016438,2]
[404594438,1770322240729,-500.0,0.00016438,2]
[404594439,1770322240738,-500.0,0.00016438,2]
[404594440,1770322240747,-500.0,0.00016438,2]
[404594441,1770322240757,-500.0,0.00016438,2]
[404594442,1770322240766,-500.0,0.00016438,2]
[404594443,1770322240776,-500.0,0.00016438,2]
[404594444,1770322240786,-500.0,0.00016438,2]
[404594445,1770322240795,-500.0,0.00016438,2]
[404594446,1770322240805,-500.0,0.00016438,2]
[404594447,1770322240815,-500.0,0.00016438,2]
[404594448,1770322240824,-500.0,0.00016438,2]
[404594449,1770322240834,-500.0,0.00016438,2]
[404594450,1770322240843,-500.0,0.00016438,2]
[404594451,1770322240852,-500.0,0.00016438,2]
[404594452,1770322240862,-500.0,0.00016438,2]
[404594453,1770322240871,-500.0,0.00016438,2]
[404594454,1770322240881,-500.0,0.00016438,2]
[404594455,1770322240890,-500.0,0.00016438,2]
[404594456,1770322240900,-500.0,0.00016438,2]
[404594457,1770322240909,-500.0,0.00016438,2]
[404594458,1770322240919,-500.0,0.00016438,2]
[404594459,1770322240929,-500.0,0.00016438,2]
[404594460,1770322240938,-500.0,0.00016438,2]
[404594461,1770322240948,-500.0,0.00016438,2]
[404594462,1770322240957,-500.0,0.00016438,2]
[404594463,1770322240966,-500.0,0.00016438,2]
[404594464,1770322240975,-500.0,0.00016438,2]
[404594465,1770322240985,-500.0,0.00016438,2]
[404594466,1770322240995,-500.0,0.00016438,2]
[404594467,1770322241005,-500.0,0.00016438,2]
[404594468,1770322241014,-500.0,0.00016438,2]
[404594469,1770322241023,-500.0,0.00016438,2]
[404594470,1770322241033,-1319.26753191,0.00016438,2]
[404594471,1770322241045,-1319.26753191,0.00016438,2]
[404594472,1770322241055,-1319.26753191,0.00016438,2]
[404594473,1770322241064,-1319.26753191,0.00016438,2]
[404594474,1770322241075,-1319.26753191,0.00016438,2]
[404594475,1770322241084,-1319.26753191,0.00016438,2]
[404594476,1770322241094,-1319.26753191,0.00016438,2]
[404594477,1770322241104,-1319.26753191,0.00016438,2]
[404594478,1770322241115,-1319.26753191,0.00016438,2]
[404594479,1770322241125,-1319.26753191,0.00016438,2]
[404594480,1770322241134,-1319.26753191,0.00016438,2]
[404594481,1770322241144,-1319.26753191,0.00016438,2]
[404594482,1770322241154,-1319.26753191,0.00016438,2]
[404594483,1770322241163,-1319.26753191,0.00016438,2]
[404594484,1770322241174,-1319.26753191,0.00016438,2]
[404594485,1770322241183,-1319.26753191,0.00016438,2]
[404594486,1770322241193,-1319.26753191,0.00016438,2]
[404594487,1770322241203,-1319.26753191,0.00016438,2]
[404594488,1770322241212,-1319.26753191,0.00016438,2]
[404594489,1770322241223,-1319.26753191,0.00016438,2]
[404594490,1770322241232,-1319.26753191,0.00016438,2]
[404594491,1770322241241,-1319.26753191,0.00016438,2]
[404594492,1770322241251,-1319.26753191,0.00016438,2]
[404594493,1770322241260,-1319.26753191,0.00016438,2]
[404594494,1770322241270,-1319.26753191,0.00016438,2]
[404594495,1770322241279,-1319.26753191,0.00016438,2]
[404594496,1770322241289,-1319.26753191,0.00016438,2]
[404594497,1770322241298,-1319.26753191,0.00016438,2]
[404594498,1770322241308,-1319.26753191,0.00016438,2]
[404594499,1770322241317,-1319.26753191,0.00016438,2]
[404594500,1770322241326,-1319.26753191,0.00016438,2]
[404594501,1770322241336,-1319.26753191,0.00016438,2]
[404594502,1770322241345,-1319.26753191,0.00016438,2]
[404594503,1770322241355,-1319.26753191,0.00016438,2]
[404594504,1770322241364,-1319.26753191,0.00016438,2]
[404594505,1770322241373,-1319.26753194,0.00016438,2]
[404594506,1770322241383,-1319.26753194,0.00016438,2]
[404594507,1770322241392,-1319.26753194,0.00016438,2]
[404594508,1770322241401,-1319.26753194,0.00016438,2]
[404594509,1770322241411,-1319.26753194,0.00016438,2]
[404594510,1770322241421,-1319.26753194,0.00016438,2]
[404594511,1770322241431,-1319.26753192,0.00016438,2]
[404594512,1770322241440,-166.66,0.00016541,2]
[404594513,1770322241449,-150.0,0.0001667,2]
[404594514,1770322241458,-1007.45,0.00016694,2]
[404594515,1770322241467,-2104.0,0.000167,2]
[404594516,1770322241476,-3535.6,0.0001674,2]
[404594517,1770322241486,-4383.48,0.00016762,2]
[404594518,1770322241495,-4383.48,0.00016793,2]
[404594519,1770322241504,-420.0,0.00016805,2]
[404594520,1770322241513,-1876.27,0.00016818,2]
[404594521,1770322241522,-4383.48,0.00016824,2]
[404594522,1770322241532,-4383.48,0.00016855,2]
[404594523,1770322241541,-250.0,0.00016866,2]
[404594524,1770322241550,-166.66,0.00016882,2]
[404594525,1770322241559,-500.0,0.00016883,2]
[404594526,1770322241569,-4383.48,0.00016886,2]
[404594527,1770322241578,-1680.0,0.00016889,2]
[404594528,1770322241587,-4383.48,0.00016917,2]
[404594529,1770322241596,-4383.48,0.00016947,2]
[404594530,1770322241606,-4383.48,0.00016978,2]
[404594531,1770322241616,-4383.48,0.00017009,2]
[404594532,1770322241630,-255.0,0.00017025,2]
[404594533,1770322241639,-4383.48,0.0001704,2]
[404594534,1770322241648,-4383.48,0.00017071,2]
[404594535,1770322241658,-420.0,0.00017083,2]
[404594536,1770322241668,-5530.0,0.000171,3]
[404594537,1770322241680,-3523.98,0.000171,2]
[404594538,1770322241690,-4383.48,0.00017102,2]
[404594539,1770322241700,-4383.48,0.00017133,2]
[404594540,1770322241709,-4383.48,0.00017164,2]
[404594541,1770322241719,-4383.48,0.00017194,2]
[404594542,1770322241728,-166.66,0.00017223,2]
[404594543,1770322241738,-4383.48,0.00017225,2]
[404594544,1770322241747,-4383.48,0.00017256,2]
[404594545,1770322241952,-4383.48,0.00017287,2]
[404594546,1770322241962,-4383.48,0.00017318,2]
[404594547,1770322241972,-4383.48,0.00017349,2]
[404594548,1770322241982,-5530.0,0.000174,5]
[404594549,1770322241991,-2137.68635111,0.00017469,2]
[404594550,1770322242001,-2488.92675677,0.00017469,2]
[404594551,1770322242011,-1007.45,0.00017529,2]
[404594552,1770322242020,-166.66,0.00017564,2]
[404594553,1770322242030,-6725.6549,0.00017863,2]
[404594554,1770322242042,-166.66,0.00017905,2]
[404594555,1770322242052,-506.0,0.0001801,2]
[404594556,1770322242062,-228.91735089,0.00018062,2]
[404594557,1770322242072,-1000.0,0.00018196,2]
[404594558,1770322242083,-1007.45,0.00018363,2]
[404594559,1770322242093,-587.0,0.00018385,2]
[404594560,1770322242102,-700.6637,0.000185,2]
[404594561,1770322242112,-2137.68635111,0.00018523,2]
[404594562,1770322242122,-2488.92675677,0.00018523,2]
[404594563,1770322242131,-1865.0,0.00018571,2]
[404594564,1770322242141,-587.0,0.00018685,2]
[404594565,1770322242150,-1246.2070109,0.00018831,2]
[404594566,1770322242159,-506.0,0.00018949,2]
[404594567,1770322242168,-276.86506558,0.00019018,2]
[404594568,1770322242183,-3000.0,0.00019178,2]
[404594569,1770322242192,-1007.45,0.00019198,2]
[404594570,1770322242202,-5184.0,0.00019562,2]
[404594571,1770322242211,-2137.68635111,0.00019577,2]
[404594572,1770322242221,-2488.92675677,0.00019577,2]
[404594573,1770322242230,-181.56067818,0.00019587,2]
[404594574,1770322242239,-203.493,0.00019587,2]
[404594575,1770322242249,-500.0,0.00019599,2]
[404594576,1770322242258,-500.0,0.00019599,2]
[404594577,1770322242268,-500.0,0.00019599,2]
[404594578,1770322242277,-501.35759554,0.00019599,2]
[404594579,1770322242287,-500.0,0.00019599,2]
[404594580,1770322242296,-540.09465669,0.00019599,2]
[404594581,1770322242305,-2000.0,0.000197,2]
[404594582,1770322242314,-506.0,0.00019889,3]
[404594583,1770322242324,-226271.6939328,0.00020003,2]
[404594584,1770322242333,-1007.45,0.00020033,2]
[404594585,1770322242342,-823.0,0.00020114,2]
[404594586,1770322242352,-250.0,0.00020278,2]
[404594587,1770322242361,-204.0,0.00020437,2]
[404594588,1770322242371,-1017.24738904,0.00020545,2]
[404594589,1770322242380,-154.75,0.00020548,2]
[404594590,1770322242389,-500.0,0.00020576,2]
[404594591,1770322242398,-400.41955232,0.00020586,2]
[404594592,1770322242413,-599.58044768,0.00020586,2]
[404594593,1770322242426,-2137.68635111,0.00020632,2]
[404594594,1770322242435,-2488.92675677,0.00020632,2]
[404594595,1770322242444,-155.22993895,0.00020695,2]
[404594596,1770322242454,-228.91735089,0.00020746,2]
[404594597,1770322242464,-155.22993895,0.00020798,2]
[404594598,1770322242473,-506.0,0.00020828,4]
[404594599,1770322242483,-2672.63,0.00020841,2]
[404594600,1770322242492,-1246.2070109,0.00020895,2]
[404594601,1770322242501,-500.0,0.00020932,2]
[404594602,1770322242511,-3482.0,0.00020967,2]
[404594603,1770322242520,-616.0,0.00020967,2]
[404594604,1770322242530,-1335.0,0.00020967,2]
[404594605,1770322242539,-1411.0,0.00020967,2]
[404594606,1770322242548,-1271.0,0.00020969,2]
[404594607,1770322242557,-1205.0,0.00020972,2]
[404594608,1770322242567,-917.0,0.00020972,2]
[404594609,1770322242576,-150.0,0.00020973,2]
[404594610,1770322242585,-169.2,0.00021,7]
[404594611,1770322242594,-2446.0,0.00021012,2]
[404594612,1770322242604,-3254.0,0.00021012,2]
[404594613,1770322242613,-412.0,0.00021012,2]
[404594614,1770322242622,-151.0,0.00021182,2]
[404594615,1770322242631,-150.0,0.00021352,2]
[404594616,1770322242642,-150.0,0.00021352,2]
[404594617,1770322242652,-159.15241189,0.00021435,2]
[404594618,1770322242661,-153.0,0.00021435,2]
[404594619,1770322242673,-1503.0,0.00021435,2]
[404594620,1770322242682,-153.0,0.00021435,2]
[404594621,1770322242691,-1503.0,0.00021435,2]
[404594622,1770322242701,-153.0,0.00021435,2]
[404594623,1770322242710,-1503.0,0.00021435,2]
[404594624,1770322242720,-153.0,0.00021435,2]
[404594625,1770322242729,-151.0,0.00021435,2]
[404594626,1770322242739,-1503.0,0.00021435,2]
[404594627,1770322242749,-151.0,0.00021435,2]
[404594628,1770322242759,-153.0,0.00021435,2]
[404594629,1770322242768,-1503.0,0.00021435,2]
[404594630,1770322242777,-151.0,0.00021435,2]
[404594631,1770322242787,-153.0,0.00021435,2]
[404594632,1770322242796,-1503.0,0.00021435,2]
[404594633,1770322242806,-151.0,0.00021435,2]
[404594634,1770322242815,-153.0,0.00021435,2]
[404594635,1770322242825,-1503.0,0.00021435,2]
[404594636,1770322242834,-151.0,0.00021435,2]
[404594637,1770322242843,-1503.0,0.00021435,2]
[404594638,1770322242852,-153.0,0.00021435,2]
[404594639,1770322242861,-151.0,0.00021435,2]
[404594640,1770322242870,-153.0,0.00021435,2]
[404594641,1770322242879,-151.0,0.00021435,2]
[404594642,1770322242888,-153.0,0.00021435,2]
[404594643,1770322242897,-151.0,0.00021435,2]
[404594644,1770322242907,-153.0,0.00021435,2]
[404594645,1770322242916,-151.0,0.00021435,2]
[404594646,1770322242928,-153.0,0.00021435,2]
[404594647,1770322242938,-151.0,0.00021435,2]
[404594648,1770322242947,-153.0,0.00021435,2]
[404594649,1770322242956,-151.0,0.00021435,2]
[404594650,1770322242965,-153.0,0.00021435,2]
[404594651,1770322242975,-151.0,0.00021435,2]
[404594652,1770322242984,-153.0,0.00021435,2]
[404594653,1770322242992,-151.0,0.00021435,2]
[404594654,1770322243002,-151.0,0.00021435,2]
[404594655,1770322243011,-153.0,0.00021435,2]
[404594656,1770322243021,-151.0,0.00021435,2]
[404594657,1770322243030,-153.0,0.00021435,2]
[404594658,1770322243044,-151.0,0.00021435,2]
[404594659,1770322243055,-153.0,0.00021435,2]
[404594660,1770322243065,-1503.0,0.00021435,2]
[404594661,1770322243074,-151.0,0.00021435,2]
[404594662,1770322243087,-153.0,0.00021435,2]
[404594663,1770322243096,-1503.0,0.00021435,2]
[404594664,1770322243105,-151.0,0.00021435,2]
[404594665,1770322243116,-153.0,0.00021435,2]
[404594666,1770322243125,-1503.0,0.00021435,2]
[404594667,1770322243134,-151.0,0.00021435,2]
[404594668,1770322243143,-244.32691947,0.00021435,2]
[404594669,1770322243153,-1503.0,0.00021435,2]
[404594670,1770322243162,-151.0,0.00021435,2]
[404594671,1770322243174,-1503.0,0.00021435,2]
[404594672,1770322243183,-151.0,0.00021435,2]
[404594673,1770322243192,-151.0,0.00021435,2]
[404594674,1770322243202,-1503.0,0.00021435,2]
[404594675,1770322243211,-1503.0,0.00021435,2]
[404594676,1770322243220,-151.0,0.00021435,2]
[404594677,1770322243229,-1503.0,0.00021435,2]
[404594678,1770322243238,-151.0,0.00021435,2]
[404594679,1770322243247,-1503.0,0.00021435,2]
[404594680,1770322243257,-1503.0,0.00021435,2]
[404594681,1770322243266,-151.0,0.00021435,2]
[404594682,1770322243275,-1503.0,0.00021435,2]
[404594683,1770322243284,-151.0,0.00021435,2]
[404594684,1770322243294,-1503.0,0.00021435,2]
[404594685,1770322243303,-151.0,0.00021435,2]
[404594686,1770322243313,-1503.0,0.00021435,2]
[404594687,1770322243323,-151.0,0.00021435,2]
[404594688,1770322243332,-1503.0,0.00021435,2]
[404594689,1770322243342,-151.0,0.00021435,2]
[404594690,1770322243351,-1503.0,0.00021435,2]
[404594691,1770322243360,-151.0,0.00021435,2]
[404594692,1770322243370,-1503.0,0.00021435,2]
[404594693,1770322243379,-151.0,0.00021435,2]
[404594694,1770322243388,-1503.0,0.00021435,2]
[404594695,1770322243399,-151.0,0.00021435,2]
[404594696,1770322243408,-1503.0,0.00021435,2]
[404594697,1770322243417,-151.0,0.00021435,2]
[404594698,1770322243430,-1503.0,0.00021435,2]
[404594699,1770322243439,-302.0,0.00021435,2]
[404594700,1770322243449,-1503.0,0.00021435,2]
[404594701,1770322243458,-1503.0,0.00021435,2]
[404594702,1770322243468,-1503.0,0.00021435,2]
[404594703,1770322243477,-1503.0,0.00021435,2]
[404594704,1770322243486,-1503.0,0.00021435,2]
[404594705,1770322243496,-1503.0,0.00021435,2]
[404594706,1770322243505,-1503.0,0.00021435,2]
[404594707,1770322243514,-1503.0,0.00021435,2]
[404594708,1770322243523,-1503.0,0.00021435,2]
[404594709,1770322243532,-1503.0,0.00021435,2]
[404594710,1770322243541,-1503.0,0.00021435,2]
[404594711,1770322243550,-1503.0,0.00021435,2]
[404594712,1770322243559,-10527.90353513,0.000215,2]
[404594713,1770322243569,-222.44721566,0.000215,2]
[404594714,1770322243578,-500.0,0.000215,2]
[404594715,1770322243587,-500.0,0.000215,2]
[404594716,1770322243597,-500.0,0.000215,2]
[404594717,1770322243607,-500.0,0.000215,2]
[404594718,1770322243616,-500.0,0.000215,2]
[404594719,1770322243626,-500.0,0.000215,2]
[404594720,1770322243636,-500.0,0.000215,2]
[404594721,1770322243646,-302.73798381,0.000215,2]
[404594722,1770322243656,-159.0,0.000215,2]
[404594723,1770322243666,-159.89228707,0.000215,2]
[404594724,1770322243677,-200.0,0.000215,2]
[404594725,1770322243687,-1000.0,0.000215,2]
[404594726,1770322243697,-216.27475347,0.000215,2]
[404594727,1770322243707,-250.0,0.00021521,2]
[404594728,1770322243717,-1000.0,0.00021644,2]
[404594729,1770322243727,-2137.68635111,0.00021686,2]
[404594730,1770322243736,-2488.92675677,0.00021686,2]
[404594731,1770322243746,-1321.29,0.00021746,2]
[404594732,1770322243755,-200.0,0.00021754,2]
[404594733,1770322243765,-150.0,0.00021754,2]
[404594734,1770322243775,-194.03688759,0.00021754,2]
[404594735,1770322243784,-500.0,0.00021754,2]
[404594736,1770322243794,-500.0,0.00021754,2]
[404594737,1770322243804,-506.0,0.00021767,5]
[404594738,1770322243814,-200.0,0.00021809,2]
[404594739,1770322243823,-500.0,0.00021809,2]
[404594740,1770322243833,-500.0,0.00021809,2]
[404594741,1770322243843,-200.0,0.00021864,2]
[404594742,1770322243852,-500.0,0.00021864,2]
[404594743,1770322243862,-500.0,0.00021864,2]
[404594744,1770322243871,-474.6334,0.00021899,2]
[404594745,1770322243882,-5000.0,0.00021918,2]
[404594748,1770322243892,-800.0,0.00021918,4]
[404594749,1770322243902,-800.0,0.00021918,4]
[404594750,1770322243912,-800.0,0.00021918,4]
[404594751,1770322243924,-800.0,0.00021918,4]
[404594752,1770322243934,-800.0,0.00021918,4]
[404594753,1770322243944,-800.0,0.00021918,4]
[404594755,1770322243954,-800.0,0.00021918,4]
[404594756,1770322243963,-800.0,0.00021918,4]
[404594757,1770322243972,-800.0,0.00021918,4]
[404594758,1770322243982,-800.0,0.00021918,4]
[404594760,1770322243991,-800.0,0.00021918,4]
[404594761,1770322244000,-800.0,0.00021918,4]
[404594762,1770322244009,-800.0,0.00021918,4]
[404594763,1770322244018,-800.0,0.00021918,4]
[404594765,1770322244027,-800.0,0.00021918,4]
[404594766,1770322244037,-800.0,0.00021918,4]
[404594768,1770322244050,-1000.0,0.00021918,2]
[404594769,1770322244060,-500.0,0.00021918,2]
[404594770,1770322244069,-500.0,0.00021918,2]
[404594771,1770322244079,-500.0,0.00021918,2]
[404594772,1770322244088,-500.0,0.00021918,2]
[404594773,1770322244098,-500.0,0.00021918,2]
[404594774,1770322244107,-500.0,0.00021918,2]
[404594775,1770322244117,-500.0,0.00021918,2]
[404594776,1770322244127,-500.0,0.00021918,2]
[404594777,1770322244137,-500.0,0.00021918,2]
[404594778,1770322244147,-500.0,0.00021918,2]
[404594779,1770322244157,-500.0,0.00021918,2]
[404594780,1770322244166,-500.0,0.00021918,2]
[404594781,1770322244179,-500.0,0.00021918,2]
[404594782,1770322244189,-500.0,0.00021918,2]
[404594783,1770322244198,-500.0,0.00021918,2]
[404594784,1770322244207,-500.0,0.00021918,2]
[404594785,1770322244217,-500.0,0.00021918,2]
[404594786,1770322244227,-500.0,0.00021918,2]
[404594787,1770322244237,-500.0,0.00021918,2]
[404594788,1770322244247,-500.0,0.00021918,2]
[404594789,1770322244257,-500.0,0.00021918,2]
[404594790,1770322244267,-500.0,0.00021918,2]
[404594791,1770322244276,-500.0,0.00021918,2]
[404594792,1770322244286,-500.0,0.00021918,2]
[404594793,1770322244297,-500.0,0.00021918,2]
[404594794,1770322244307,-500.0,0.00021918,2]
[404594795,1770322244316,-500.0,0.00021918,2]
[404594796,1770322244325,-500.0,0.00021918,2]
[404594797,1770322244335,-500.0,0.00021918,2]
[404594798,1770322244345,-500.0,0.00021918,2]
[404594799,1770322244354,-500.0,0.00021918,2]
[404594800,1770322244363,-565.56392315,0.00021918,2]
[404594801,1770322244373,-500.0,0.00021918,2]
[404594802,1770322244382,-500.0,0.00021918,2]
[404594803,1770322244392,-500.0,0.00021918,2]
[404594804,1770322244403,-500.0,0.00021918,2]
[404594805,1770322244412,-500.0,0.00021918,2]
[404594806,1770322244421,-500.0,0.00021918,2]
[404594807,1770322244434,-500.0,0.00021918,2]
[404594808,1770322244443,-500.0,0.00021918,2]
[404594809,1770322244453,-500.0,0.00021918,2]
[404594810,1770322244463,-500.0,0.00021918,2]
[404594811,1770322244472,-500.0,0.00021918,2]
[404594812,1770322244481,-500.0,0.00021918,2]
[404594813,1770322244491,-500.0,0.00021918,2]
[404594814,1770322244500,-500.0,0.00021918,2]
[404594815,1770322244510,-500.0,0.00021918,2]
[404594816,1770322244519,-500.0,0.00021918,2]
[404594817,1770322244528,-618.39599147,0.00021918,2]
[404594818,1770322244538,-500.0,0.00021918,2]
[404594819,1770322244547,-500.0,0.00021918,2]
[404594820,1770322244556,-500.0,0.00021918,2]
[404594821,1770322244565,-500.0,0.00021918,2]
[404594822,1770322244575,-500.0,0.00021918,2]
[404594823,1770322244584,-500.0,0.00021918,2]
[404594824,1770322244594,-500.0,0.00021918,2]
[404594825,1770322244603,-500.0,0.00021918,2]
[404594826,1770322244612,-500.0,0.00021918,2]
[404594827,1770322244622,-200.0,0.00021918,2]
[404594828,1770322244632,-200.0,0.00021973,2]
[404594829,1770322244641,-155.0,0.00021998,2]
[404594830,1770322244651,-1070.09,0.00022,7]
[404594831,1770322244660,-136400.63446222,0.00022,4]
[404594832,1770322244858,-1308.7325,0.00022,4]
[404594833,1770322244881,-369.03689523,0.00022,4]
[404594834,1770322244892,-460.29153315,0.00022,4]
[404594836,1770322245276,-160.0,0.00016629,2]
[404594837,1770322245286,-1142.02,0.00022,4]
[404594838,1770322245297,-326.36,0.00022,4]
[404594839,1770322245442,-876.04092574,0.00022,4]
[404594840,1770322245456,-6510.0,0.00022,4]
[404594882,1770322246603,-65484.91477357,0.00022,4]
[404594883,1770322246631,-435.56147818,0.00022,4]
[404594891,1770322332299,5000.01,0.0001531,2]
[404594892,1770322332324,5000.01,0.0001531,2]
[404594893,1770322332349,5000.01,0.0001531,2]
[404594894,1770322332373,5000.01,0.0001531,2]
[404594895,1770322332398,5000.01,0.0001531,2]
[404594896,1770322332422,5000.01,0.0001531,2]
[404594897,1770322332445,5000.01,0.0001531,2]
[404594898,1770322332470,5000.01,0.0001531,2]
[404594902,1770322580642,-500.0,0.000146,2]
[404594905,1770322943815,-753.494315,0.00014925,2]
[404594906,1770323004760,-254.97899767,0.000146,2]
[404594909,1770323050295,-500.0,0.000146,2]
[404594915,1770323161263,1683.72299117,8e-05,2]
[404594916,1770323202513,-215.71529565,0.000149,2]
[404594917,1770323248052,-500.0,0.00014604,2]
[404594919,1770323293665,-269.81244442,0.0001439,2]
[404594920,1770323308710,-2104.0,0.000149,2]
[404594921,1770323321978,1234.02608619,0.0001,2]
[404594924,1770323358169,-300.0,0.00014989,2]
[404594925,1770323358190,-1094.0,0.00014989,2]
[404594926,1770323358212,-195.0,0.00014989,2]
[404594927,1770323358233,-154.6563981,0.0001499,2]
[404594931,1770323430565,-200.0,0.00014535,2]
[404594944,1770323431291,-2612.5,0.000149,2]
[404594948,1770323431349,-1800.04184443,0.000149,2]
[404594949,1770323431360,-511.41673198,0.000149,2]
[404594950,1770323431370,-1200.0,0.00014989,2]
[404594951,1770323431379,-95.3436019,0.0001499,2]
[404594952,1770323431392,-3376.77966612,0.0001499,2]
[404594953,1770323431410,-5749.99994,0.0001499,2]
[404594954,1770323431422,-5764.50677811,0.0001499,2]
[404594955,1770323431435,-3226.0,0.0001499,2]
[404594956,1770323431446,-3250.0,0.0001499,2]
[404594957,1770323431478,-1524.9999999,0.0001499,2]
[404594958,1770323431490,-298.36781513,0.0001499,2]
[404594959,1770323431526,-839.69160322,0.0001499,2]
[404595032,1770323437342,-8538.50457711,0.0001499,2]
[404595033,1770323437352,-195.0,0.00014994,2]
[404595034,1770323437361,-250.0,0.00015,2]
[404595035,1770323437370,-2638.59749337,0.00015,14]
[404595036,1770323437380,-238.79,0.00015001,2]
[404595037,1770323437392,-2752.61619467,0.00015009,2]
[404595038,1770323437402,-4482.41290704,0.0001501,2]
[404595039,1770323437414,-950.7851588,0.0001501,2]
[404595040,1770323437424,-300.0,0.00015047,2]
[404595041,1770323437434,-227.69990622,0.00015048,2]
[404595042,1770323437443,-4173.27151078,0.00015048,2]
[404595043,1770323437457,-778.2434242,0.00015048,2]
[404595044,1770323437469,-6290.97498007,0.00015048,2]
[404595045,1770323437480,-794.5728979,0.00015048,2]
[404595046,1770323437490,-197.98184959,0.00015048,2]
[404595047,1770323437499,-197.44773227,0.00015048,2]
[404595048,1770323437509,-150.0,0.00015083,2]
[404595049,1770323437520,-5530.0,0.000151,3]
[404595050,1770323437529,-331.38877808,0.000151,2]
[404595051,1770323437539,-331.38877808,0.000151,2]
[404595052,1770323437549,-402.5096503,0.00015109,2]
[404595053,1770323437559,-500.0,0.00015109,2]
[404595054,1770323437569,-259.70939123,0.00015109,2]
[404595055,1770323437579,-500.0,0.00015109,2]
[404595056,1770323437588,-500.0,0.00015109,2]
[404595057,1770323437598,-500.0,0.00015109,2]
[404595058,1770323437608,-500.0,0.00015109,2]
[404595059,1770323437617,-500.0,0.00015109,2]
[404595060,1770323437627,-500.0,0.00015109,2]
[404595061,1770323437636,-500.0,0.00015109,2]
[404595062,1770323437646,-500.0,0.00015109,2]
[404595063,1770323437656,-500.0,0.00015109,2]
[404595064,1770323437666,-500.0,0.00015109,2]
[404595065,1770323437676,-500.0,0.00015109,2]
[404595066,1770323437686,-500.0,0.00015109,2]
[404595067,1770323437695,-500.0,0.00015109,2]
[404595069,1770323437708,-500.0,0.00015109,2]
[404595070,1770323437717,-500.0,0.00015109,2]
[404595072,1770323437727,-500.0,0.00015109,2]
[404595074,1770323437736,-500.0,0.00015109,2]
[404595077,1770323437746,-500.0,0.00015109,2]
[404595079,1770323437756,-500.0,0.00015109,2]
[404595080,1770323437765,-500.0,0.00015109,2]
[404595083,1770323437774,-500.0,0.00015109,2]
[404595085,1770323437783,-500.0,0.00015109,2]
[404595087,1770323437793,-500.0,0.00015109,2]
[404595089,1770323437802,-500.0,0.00015109,2]
[404595091,1770323437811,-500.0,0.00015109,2]
[404595093,1770323437820,-500.0,0.00015109,2]
[404595095,1770323437830,-500.0,0.00015109,2]